fUSD/lending_fUSD_20250524
["ID","MTS","AMOUNT","RATE_DAILY","PERIOD"]
[362177977,1748062247277,-800.0,0.000276,10]
[362177978,1748062247286,-1789.0,0.000276,2]
[362177979,1748062247296,-1000.0,0.000276,2]
[362177980,1748062247307,-172.03905887,0.00027659,2]
[362177981,1748062247318,-500.0,0.00027666,2]
[362177982,1748062247328,-502.99766792,0.00027666,2]
[362177983,1748062247337,-500.0,0.00027666,2]
[362177984,1748062247346,-207024.8929,0.00027667,2]
[362177985,1748062247356,-168.907086,0.00027671,4]
[362177986,1748062247365,-373.59331799,0.00027673,2]
[362177987,1748062247375,-373.59331799,0.00027675,2]
[362177988,1748062247385,-373.59331799,0.00027677,2]
[362177989,1748062247395,-6692.18374918,0.00027699,10]
[362177990,1748062247404,-1600.0,0.000277,10]
[362177991,1748062247413,-420.0,0.00027736,2]
[362177992,1748062247423,-697.21887723,0.00027738,2]
[362177993,1748062247432,-500.0,0.00027756,2]
[362177994,1748062247442,-500.0,0.00027756,2]
[362177995,1748062247451,-75852.691038,0.00027757,3]
[362177996,1748062247461,-689.2752,0.00027759,2]
[362177997,1748062247471,-150.0,0.00027766,2]
[362177998,1748062247481,-500.0,0.00027766,2]
[362177999,1748062247490,-500.0,0.00027766,2]
[362178000,1748062247499,-500.0,0.00027766,2]
[362178001,1748062247509,-606.54914481,0.00027766,2]
[362178002,1748062247519,-152.55,0.00027766,2]
[362178003,1748062247528,-152.55,0.00027766,2]
[362178004,1748062247538,-385.02197391,0.00027766,2]
[362178005,1748062247547,-493042.491747,0.00027767,3]
[362178006,1748062247557,-501.26697071,0.00027773,5]
[362178007,1748062247566,-500.0,0.00027776,2]
[362178008,1748062247576,-500.0,0.00027776,2]
[362178009,1748062247586,-152.238635,0.00027776,7]
[362178010,1748062247596,-151.0,0.00027776,7]
[362178011,1748062247608,-154.248266,0.00027776,7]
[362178012,1748062247618,-244.126421,0.00027776,7]
[362178013,1748062247628,-151.0,0.00027776,7]
[362178014,1748062247637,-153.880388,0.00027776,7]
[362178015,1748062247648,-150.0,0.00027776,2]
[362178016,1748062247658,-151.0,0.00027776,7]
[362178017,1748062247669,-151.0,0.00027776,7]
[362178018,1748062247678,-151.0,0.00027776,7]
[362178019,1748062247687,-151.0,0.00027776,7]
[362178020,1748062247697,-151.0,0.00027776,7]
[362178021,1748062247706,-151.0,0.00027776,7]
[362178022,1748062247715,-156.855883,0.00027776,7]
[362178023,1748062247724,-500.0,0.00027776,2]
[362178024,1748062247734,-500.0,0.00027776,2]
[362178025,1748062247744,-500.0,0.00027776,2]
[362178026,1748062247756,-500.0,0.00027776,2]
[362178027,1748062247765,-500.0,0.00027776,2]
[362178028,1748062247774,-500.0,0.00027776,2]
[362178029,1748062247783,-548.97410725,0.00027776,2]
[362178030,1748062247793,-151.0,0.00027776,7]
[362178031,1748062247803,-152.919391,0.00027776,7]
[362178032,1748062247812,-151.0,0.00027776,7]
[362178033,1748062247822,-151.0,0.00027776,7]
[362178034,1748062247831,-152.651838,0.00027776,7]
[362178035,1748062247841,-428.56929832,0.00027776,3]
[362178036,1748062247851,-1244857.05553352,0.00027776,3]
[362178037,1748062247860,-155.14893,0.00027777,7]
[362178038,1748062247871,-153.826229,0.00027777,7]
[362178039,1748062247881,-151.0,0.00027777,7]
[362178040,1748062247890,-151.0,0.00027777,7]
[362178041,1748062247899,-151.0,0.00027777,7]
[362178042,1748062247909,-151.0,0.00027777,7]
[362178043,1748062247919,-153.22673,0.00027777,7]
[362178044,1748062247928,-151.0,0.00027777,7]
[362178045,1748062247938,-245.879105,0.00027777,7]
[362178046,1748062247948,-151.0,0.00027777,7]
[362178047,1748062247957,-151.758279,0.00027777,7]
[362178048,1748062247966,-151.0,0.00027777,7]
[362178049,1748062247976,-151.0,0.00027777,7]
[362178050,1748062247987,-151.0,0.00027777,7]
[362178051,1748062247996,-151.0,0.00027777,7]
[362178052,1748062248007,-151.0,0.00027777,7]
[362178053,1748062248016,-151.0,0.00027777,7]
[362178054,1748062248025,-157.159034,0.00027777,7]
[362178055,1748062248035,-151.0,0.00027777,7]
[362178056,1748062248044,-152.914452,0.00027777,7]
[362178057,1748062248053,-318.88761,0.00027777,7]
[362178058,1748062248062,-318.88761,0.00027777,7]
[362178059,1748062248071,-318.88761,0.00027777,7]
[362178060,1748062248082,-318.88761,0.00027777,7]
[362178061,1748062248092,-156.439149,0.00027777,7]
[362178062,1748062248102,-151.0,0.00027777,7]
[362178063,1748062248112,-151.0,0.00027777,7]
[362178064,1748062248126,-151.0,0.00027777,7]
[362178065,1748062248136,-151.0,0.00027777,7]
[362178066,1748062248146,-151.0,0.00027777,7]
[362178067,1748062248155,-151.0,0.00027777,7]
[362178068,1748062248166,-153.160458,0.00027777,7]
[362178069,1748062248175,-538.47914,0.00027777,7]
[362178070,1748062248185,-538.47914,0.00027777,7]
[362178071,1748062248194,-538.47914,0.00027777,7]
[362178072,1748062248203,-538.47914,0.00027777,7]
[362178073,1748062248213,-151.0,0.00027777,7]
[362178074,1748062248222,-166.927424,0.00027777,7]
[362178075,1748062248231,-174.368475,0.00027777,7]
[362178076,1748062248240,-174.368475,0.00027777,7]
[362178077,1748062248250,-174.368475,0.00027777,7]
[362178078,1748062248260,-174.368475,0.00027777,7]
[362178079,1748062248270,-151.0,0.00027777,7]
[362178080,1748062248279,-158.265232,0.00027777,7]
[362178081,1748062248288,-154.598359,0.00027777,7]
[362178082,1748062248297,-151.0,0.00027777,7]
[362178083,1748062248307,-151.0,0.00027777,7]
[362178084,1748062248315,-243.158872,0.00027777,7]
[362178085,1748062248325,-243.158872,0.00027777,7]
[362178086,1748062248334,-151.0,0.00027777,7]
[362178087,1748062248344,-151.0,0.00027777,7]
[362178088,1748062248354,-243.158872,0.00027777,7]
[362178089,1748062248363,-151.0,0.00027777,7]
[362178090,1748062248372,-243.158872,0.00027777,7]
[362178091,1748062248381,-152.11282,0.00027777,7]
[362178092,1748062248390,-151.0,0.00027777,7]
[362178093,1748062248400,-151.0,0.00027777,7]
[362178094,1748062248409,-151.0,0.00027777,7]
[362178095,1748062248418,-151.0,0.00027777,7]
[362178096,1748062248428,-154.648969,0.00027777,7]
[362178097,1748062248437,-151.0,0.00027777,7]
[362178098,1748062248447,-164.121171,0.00027777,7]
[362178099,1748062248455,-280.991457,0.00027777,7]
[362178100,1748062248465,-280.991457,0.00027777,7]
[362178101,1748062248474,-280.991457,0.00027777,7]
[362178102,1748062248483,-280.991457,0.00027777,7]
[362178103,1748062248492,-162.158393,0.00027777,7]
[362178104,1748062248501,-162.158393,0.00027777,7]
[362178105,1748062248511,-162.158393,0.00027777,7]
[362178106,1748062248520,-162.158393,0.00027777,7]
[362178107,1748062248530,-154.023322,0.00027777,7]
[362178108,1748062248539,-151.0,0.00027777,7]
[362178109,1748062248548,-152.297595,0.00027777,7]
[362178110,1748062248557,-151.0,0.00027777,7]
[362178111,1748062248567,-158.075644,0.00027777,7]
[362178112,1748062248576,-151.0,0.00027777,7]
[362178113,1748062248586,-151.0,0.00027777,7]
[362178114,1748062248595,-151.0,0.00027777,7]
[362178115,1748062248604,-151.0,0.00027777,7]
[362178116,1748062248613,-151.0,0.00027777,7]
[362178117,1748062248622,-151.0,0.00027777,7]
[362178118,1748062248631,-151.0,0.00027777,7]
[362178119,1748062248641,-151.0,0.00027777,7]
[362178120,1748062248650,-290.251663,0.00027777,7]
[362178121,1748062248660,-37394.3538454,0.00027777,2]
[362178122,1748062248835,-732.86015702,0.00026845,2]
[362178123,1748062248845,-3291.6659694,0.00027777,2]
[362178124,1748062248858,-435471.51409478,0.00027777,2]
[362178125,1748062248867,-2400.0,0.000278,10]
[362178126,1748062248877,-377.0,0.000278,2]
[362178127,1748062248886,-156.28355,0.00027808,4]
[362178128,1748062248895,-168.907086,0.00027808,4]
[362178129,1748062248906,-175.0,0.00027808,2]
[362178130,1748062248915,-345.0,0.00027809,5]
[362178131,1748062248925,-151.0,0.00027827,7]
[362178132,1748062248935,-152.619271,0.00027827,7]
[362178133,1748062248944,-243.53701,0.00027827,7]
[362178134,1748062248954,-151.0,0.00027827,7]
[362178135,1748062248963,-151.0,0.00027827,7]
[362178136,1748062249194,-151.0,0.00027827,7]
[362178137,1748062249205,-151.0,0.00027827,7]
[362178138,1748062249214,-318.88761,0.00027827,7]
[362178139,1748062249223,-318.88761,0.00027827,7]
[362178140,1748062249233,-160.013738,0.00027827,7]
[362178141,1748062249242,-151.0,0.00027827,7]
[362178142,1748062249251,-538.47914,0.00027827,7]
[362178143,1748062249261,-538.47914,0.00027827,7]
[362178144,1748062249270,-174.368475,0.00027827,7]
[362178145,1748062249279,-174.368475,0.00027827,7]
[362178146,1748062249289,-151.0,0.00027827,7]
[362178147,1748062249298,-243.158872,0.00027827,7]
[362178148,1748062249308,-154.207787,0.00027827,7]
[362178149,1748062249317,-243.158872,0.00027827,7]
[362178150,1748062249326,-163.950588,0.00027827,7]
[362178151,1748062249335,-151.0,0.00027827,7]
[362178152,1748062249345,-280.991457,0.00027827,7]
[362178153,1748062249354,-280.991457,0.00027827,7]
[362178154,1748062249364,-162.158393,0.00027827,7]
[362178155,1748062249374,-162.158393,0.00027827,7]
[362178156,1748062249383,-297.28826596,0.00027831,17]
[362178157,1748062249392,-500.0,0.00027837,2]
[362178158,1748062249402,-500.0,0.00027837,2]
[362178159,1748062249411,-500.0,0.00027837,2]
[362178160,1748062249421,-500.0,0.00027837,2]
[362178161,1748062249430,-500.0,0.00027837,2]
[362178162,1748062249439,-500.0,0.00027837,2]
[362178163,1748062249449,-151.0,0.00027838,7]
[362178164,1748062249458,-151.0,0.00027838,7]
[362178165,1748062249467,-151.0,0.00027838,7]
[362178166,1748062249476,-151.0,0.00027838,7]
[362178167,1748062249486,-155.341665,0.00027838,7]
[362178168,1748062249496,-159.35018,0.00027838,7]
[362178169,1748062249505,-151.0,0.00027838,7]
[362178170,1748062249514,-151.0,0.00027838,7]
[362178171,1748062249524,-160.499301,0.00027838,7]
[362178172,1748062249533,-156.36864,0.00027838,7]
[362178173,1748062249543,-151.0,0.00027838,7]
[362178174,1748062249552,-208.925851,0.00027838,7]
[362178175,1748062249563,-151.0,0.00027838,7]
[362178176,1748062249572,-151.0,0.00027838,7]
[362178177,1748062249581,-151.0,0.00027838,7]
[362178178,1748062249590,-158.904438,0.00027838,7]
[362178179,1748062249599,-154.57808,0.00027838,7]
[362178180,1748062249608,-152.266997,0.00027838,7]
[362178181,1748062249618,-151.0,0.00027838,7]
[362178182,1748062249629,-156.385593,0.00027838,7]
[362178183,1748062249639,-151.0,0.00027838,7]
[362178184,1748062249649,-157.18492,0.00027838,7]
[362178185,1748062249658,-151.0,0.00027838,7]
[362178186,1748062249668,-151.0,0.00027838,7]
[362178187,1748062249678,-151.0,0.00027838,7]
[362178188,1748062249688,-200.575521,0.00027838,7]
[362178189,1748062249698,-152.501441,0.00027838,7]
[362178190,1748062249707,-152.947955,0.00027838,7]
[362178191,1748062249716,-153.245301,0.00027838,7]
[362178192,1748062249726,-151.0,0.00027838,7]
[362178193,1748062249736,-159.185743,0.00027838,7]
[362178194,1748062249747,-151.0,0.00027838,7]
[362178195,1748062249759,-151.0,0.00027838,7]
[362178196,1748062249769,-151.0,0.00027838,7]
[362178197,1748062249779,-156.816912,0.00027838,7]
[362178198,1748062249790,-153.176619,0.00027838,7]
[362178199,1748062249800,-151.0,0.00027838,7]
[362178200,1748062249811,-151.0,0.00027838,7]
[362178201,1748062249821,-153.058475,0.00027848,7]
[362178202,1748062249831,-152.977566,0.00027848,7]
[362178203,1748062249841,-151.0,0.00027848,7]
[362178204,1748062249850,-156.117351,0.00027848,7]
[362178205,1748062249859,-151.0,0.00027848,7]
[362178206,1748062249868,-151.0,0.00027848,7]
[362178207,1748062249879,-204.251858,0.00027848,7]
[362178208,1748062249888,-153.624937,0.00027848,7]
[362178209,1748062249897,-173.615438,0.00027848,7]
[362178210,1748062249907,-152.67843,0.00027848,7]
[362178211,1748062249916,-159.762391,0.00027848,7]
[362178212,1748062249925,-151.0,0.00027848,7]
[362178213,1748062249934,-152.818708,0.00027848,7]
[362178214,1748062249943,-152.290004,0.00027848,7]
[362178215,1748062249952,-500.0,0.00027848,2]
[362178216,1748062249961,-151.312267,0.00027848,7]
[362178217,1748062249971,-151.0,0.00027848,7]
[362178218,1748062249980,-152.279476,0.00027848,7]
[362178219,1748062249989,-289.478487,0.00027848,7]
[362178220,1748062249999,-151.0,0.00027848,7]
[362178221,1748062250008,-151.0,0.00027848,7]
[362178222,1748062250017,-151.621688,0.00027849,7]
[362178223,1748062250028,-152.591756,0.00027849,7]
[362178224,1748062250038,-154.359501,0.00027849,7]
[362178225,1748062250048,-200.0,0.00027849,2]
[362178226,1748062250057,-500.0,0.00027858,2]
[362178227,1748062250067,-500.0,0.00027858,2]
[362178228,1748062250077,-150.0,0.00027868,2]
[362178229,1748062250088,-420.0,0.00027873,2]
[362178230,1748062250098,-1000.0,0.00027875,2]
[362178231,1748062250107,-150.0,0.00027877,2]
[362178232,1748062250121,-600.0,0.0002788,120]
[362178233,1748062250131,-156.84721523,0.00027883,2]
[362178234,1748062250141,-150.0,0.00027883,2]
[362178235,1748062250151,-150.0,0.00027885,2]
[362178236,1748062250160,-150.0,0.00027892,2]
[362178237,1748062250170,-150.0,0.00027893,2]
[362178238,1748062250180,-150.0,0.00027894,2]
[362178239,1748062250189,-150.0,0.00027894,2]
[362178240,1748062250198,-300.0,0.00027897,2]
[362178241,1748062250207,-28577.9970292,0.000279,2]
[362178242,1748062250217,-380.32,0.000279,7]
[362178243,1748062250226,-3200.0,0.000279,10]
[362178244,1748062250235,-1958.0,0.000279,2]
[362178245,1748062250244,-150.0,0.00027901,2]
[362178246,1748062250254,-150.0,0.00027902,2]
[362178247,1748062250263,-150.0,0.00027903,2]
[362178248,1748062250272,-1041.06441347,0.00027907,2]
[362178249,1748062250281,-200.0,0.00027908,2]
[362178250,1748062250291,-200.0,0.00027909,2]
[362178251,1748062250300,-150.0,0.00027912,2]
[362178252,1748062250309,-150.0,0.00027912,2]
[362178253,1748062250318,-151.75219463,0.00027913,2]
[362178254,1748062250327,-150.0,0.00027915,2]
[362178255,1748062250336,-150.0,0.00027923,2]
[362178256,1748062250346,-150.0,0.00027931,2]
[362178257,1748062250355,-150.0,0.00027934,2]
[362178258,1748062250366,-152.55,0.00027935,2]
[362178259,1748062250375,-168.907086,0.00027945,4]
[362178260,1748062250385,-1159.39,0.00027945,2]
[362178261,1748062250394,-1283.64,0.00027945,2]
[362178262,1748062250403,-2317.66,0.00027945,2]
[362178263,1748062250412,-1159.39,0.00027945,2]
[362178264,1748062250422,-216.86,0.00027945,2]
[362178265,1748062250431,-297.09,0.00027945,2]
[362178266,1748062250441,-162.83,0.00027945,2]
[362178267,1748062250451,-170.17,0.00027945,2]
[362178268,1748062250460,-150.0,0.00027952,2]
[362178269,1748062250470,-150.0,0.00027954,2]
[362178270,1748062250479,-150.0,0.00027956,2]
[362178271,1748062250489,-150.0,0.00027957,2]
[362178272,1748062250498,-150.0,0.00027958,2]
[362178273,1748062250507,-150.0,0.00027959,2]
[362178274,1748062250519,-150.0,0.00027962,2]
[362178275,1748062250530,-150.0,0.0002797,2]
[362178276,1748062250539,-9550.20694799,0.00027972,2]
[362178277,1748062250548,-1000.0,0.00027981,2]
[362178278,1748062250558,-150.0,0.00027981,2]
[362178279,1748062250567,-150.0,0.00027982,2]
[362178280,1748062250576,-150.0,0.00027985,2]
[362178281,1748062250586,-150.0,0.00027985,2]
[362178282,1748062250596,-150.0,0.00027986,2]
[362178283,1748062250605,-150.0,0.00027993,2]
[362178284,1748062250615,-150.0,0.00027994,2]
[362178285,1748062250624,-150.0,0.00027997,2]
[362178286,1748062250633,-1000.0,0.00027998,2]
[362178287,1748062250642,-5000.0,0.00028,2]
[362178288,1748062250651,-1200.0,0.00028,2]
[362178289,1748062250661,-1696.25,0.00028,2]
[362178290,1748062250670,-215.25,0.00028,30]
[362178291,1748062250679,-150.0,0.00028006,2]
[362178292,1748062250688,-150.0,0.00028007,2]
[362178293,1748062250697,-150.0,0.0002801,2]
[362178294,1748062250706,-420.0,0.0002801,2]
[362178295,1748062250715,-150.0,0.00028016,2]
[362178296,1748062250724,-150.0,0.00028018,2]
[362178297,1748062250733,-150.0,0.00028018,2]
[362178298,1748062250743,-150.0,0.00028022,2]
[362178299,1748062250752,-1000.0,0.00028022,2]
[362178300,1748062250761,-300.0,0.00028023,2]
[362178301,1748062250770,-943.97625311,0.00028025,2]
[362178302,1748062250780,-1000.0,0.00028026,2]
[362178303,1748062250789,-1000.0,0.00028026,2]
[362178304,1748062250799,-150.0,0.00028028,2]
[362178305,1748062250808,-183.36677214,0.00028033,2]
[362178306,1748062250817,-150.0,0.00028038,2]
[362178307,1748062250826,-150.0,0.0002804,2]
[362178308,1748062250835,-150.0,0.00028041,2]
[362178309,1748062250845,-1000.0,0.00028041,2]
[362178310,1748062250854,-150.0,0.00028046,2]
[362178311,1748062250863,-150.0,0.00028049,2]
[362178312,1748062250872,-150.0,0.00028051,2]
[362178313,1748062250882,-150.0,0.00028055,2]
[362178314,1748062250891,-150.0,0.00028056,2]
[362178315,1748062250901,-150.0,0.00028058,2]
[362178316,1748062250909,-152.76377487,0.00028058,2]
[362178317,1748062250918,-150.0,0.00028064,2]
[362178318,1748062250927,-150.0,0.00028068,2]
[362178319,1748062250937,-150.0,0.00028074,2]
[362178320,1748062250946,-1000.0,0.00028074,2]
[362178321,1748062250955,-150.0,0.00028075,2]
[362178322,1748062250965,-150.0,0.00028082,2]
[362178323,1748062250974,-156.28355,0.00028082,4]
[362178324,1748062250983,-168.907086,0.00028082,4]
[362178325,1748062250993,-150.0,0.00028089,2]
[362178326,1748062251003,-150.0,0.0002809,2]
[362178327,1748062251012,-150.0,0.00028091,2]
[362178328,1748062251021,-150.0,0.00028091,2]
[362178329,1748062251031,-150.0,0.00028092,2]
[362178330,1748062251041,-150.0,0.00028094,2]
[362178331,1748062251050,-150.0,0.00028095,2]
[362178332,1748062251059,-150.0,0.00028097,2]
[362178333,1748062251069,-150.0,0.00028101,2]
[362178334,1748062251078,-150.0,0.00028103,2]
[362178335,1748062251087,-150.0,0.00028104,2]
[362178336,1748062251096,-1000.0,0.00028105,2]
[362178337,1748062251106,-150.0,0.00028118,2]
[362178338,1748062251116,-150.0,0.00028122,2]
[362178339,1748062251128,-1000.0,0.00028123,2]
[362178340,1748062251140,-150.0,0.00028123,2]
[362178341,1748062251149,-1101.27490332,0.00028125,15]
[362178342,1748062251159,-254.44134,0.00028126,7]
[362178343,1748062251169,-151.0,0.00028126,7]
[362178344,1748062251179,-226.731182,0.00028126,7]
[362178345,1748062251187,-200.0,0.00028127,2]
[362178346,1748062251197,-150.0,0.00028129,2]
[362178347,1748062251207,-150.0,0.00028132,2]
[362178348,1748062251216,-1000.0,0.00028133,2]
[362178349,1748062251226,-192.50998,0.00028133,7]
[362178350,1748062251235,-151.0,0.00028133,7]
[362178351,1748062251244,-151.0,0.00028133,7]
[362178352,1748062251253,-151.0,0.00028133,7]
[362178353,1748062251262,-151.0,0.00028133,7]
[362178354,1748062251271,-151.0,0.00028133,7]
[362178355,1748062251281,-196.490798,0.00028133,7]
[362178356,1748062251292,-151.0,0.00028133,7]
[362178357,1748062251302,-318.88761,0.00028133,7]
[362178358,1748062251312,-318.88761,0.00028133,7]
[362178359,1748062251321,-538.47914,0.00028133,7]
[362178360,1748062251330,-538.47914,0.00028133,7]
[362178361,1748062251339,-174.368475,0.00028133,7]
[362178362,1748062251349,-174.368475,0.00028133,7]
[362178363,1748062251358,-151.0,0.00028133,7]
[362178364,1748062251368,-2344.9559051,0.00028134,2]
[362178365,1748062251377,-73864.1499999,0.00028134,2]
[362178366,1748062251386,-7595.7748794,0.00028134,2]
[362178367,1748062251395,-20652.0913001,0.00028134,2]
[362178368,1748062251404,-280.991457,0.00028134,7]
[362178369,1748062251414,-280.991457,0.00028134,7]
[362178370,1748062251423,-162.158393,0.00028134,7]
[362178371,1748062251432,-162.158393,0.00028134,7]
[362178372,1748062251442,-151.0,0.00028134,7]
[362178373,1748062251451,-151.0,0.00028134,7]
[362178374,1748062251461,-223.111472,0.00028134,7]
[362178375,1748062251470,-151.0,0.00028134,7]
[362178376,1748062251480,-151.0,0.00028134,7]
[362178377,1748062251490,-151.0,0.00028134,7]
[362178378,1748062251499,-231.176212,0.00028134,7]
[362178379,1748062251508,-151.0,0.00028134,7]
[362178380,1748062251518,-151.0,0.00028134,7]
[362178381,1748062251528,-500.0,0.00028136,2]
[362178382,1748062251537,-162.0,0.00028137,2]
[362178383,1748062251547,-658.2761845,0.00028141,2]
[362178384,1748062251557,-5862.7307123,0.00028141,2]
[362178385,1748062251566,-420.0,0.00028147,2]
[362178386,1748062251575,-189.5516854,0.00028202,2]
[362178387,1748062251584,-170.466558,0.00028203,7]
[362178388,1748062251593,-151.0,0.00028203,7]
[362178389,1748062251603,-243.158872,0.00028203,7]
[362178390,1748062251612,-243.158872,0.00028203,7]
[362178391,1748062251623,-150.99,0.00028203,2]
[362178392,1748062251633,-2243.47,0.00028203,2]
[362178393,1748062251642,-999.99,0.00028203,2]
[362178394,1748062251651,-150.99,0.00028203,2]
[362178395,1748062251661,-9999.99,0.00028203,2]
[362178396,1748062251670,-9999.99,0.00028203,2]
[362178397,1748062251679,-820.55,0.00028203,2]
[362178398,1748062251690,-2855.61,0.00028203,2]
[362178399,1748062251700,-334.61,0.00028203,2]
[362178400,1748062251709,-528.30379423,0.00028206,2]
[362178401,1748062251719,-128372.52956746,0.00028207,2]
[362178402,1748062251728,-151.0,0.00028207,7]
[362178403,1748062251737,-151.0,0.00028207,7]
[362178404,1748062251747,-151.0,0.00028207,7]
[362178405,1748062251757,-151.0,0.00028207,7]
[362178406,1748062251767,-151.0,0.00028207,7]
[362178407,1748062251776,-151.0,0.00028207,7]
[362178408,1748062251785,-185.579935,0.00028207,7]
[362178409,1748062251794,-318.88761,0.00028207,7]
[362178410,1748062251804,-318.88761,0.00028207,7]
[362178411,1748062251813,-538.47914,0.00028207,7]
[362178412,1748062251822,-538.47914,0.00028207,7]
[362178413,1748062251832,-174.368475,0.00028207,7]
[362178414,1748062251842,-174.368475,0.00028207,7]
[362178415,1748062251852,-156.863911,0.00028207,7]
[362178416,1748062251863,-243.158872,0.00028207,7]
[362178417,1748062251873,-243.158872,0.00028207,7]
[362178418,1748062251884,-151.0,0.00028207,7]
[362178419,1748062251894,-280.991457,0.00028207,7]
[362178420,1748062251903,-280.991457,0.00028207,7]
[362178421,1748062251913,-162.158393,0.00028207,7]
[362178422,1748062251922,-162.158393,0.00028207,7]
[362178423,1748062251931,-151.0,0.00028207,7]
[362178424,1748062251942,-151.0,0.00028207,7]
[362178425,1748062251952,-151.0,0.00028207,7]
[362178426,1748062251962,-151.0,0.00028207,7]
[362178427,1748062251971,-160.502727,0.00028207,7]
[362178428,1748062251981,-151.0,0.00028207,7]
[362178429,1748062251992,-151.0,0.00028207,7]
[362178430,1748062252003,-245.41,0.00028218,2]
[362178431,1748062252013,-151.482432,0.00028219,4]
[362178432,1748062252023,-786.218867,0.00028219,4]
[362178433,1748062252033,-168.907086,0.00028219,4]
[362178434,1748062252043,-458.45,0.00028219,2]
[362178435,1748062252052,-805.83,0.00028219,2]
[362178436,1748062252062,-926.34,0.00028219,2]
[362178437,1748062252073,-1611.66,0.00028219,2]
[362178438,1748062252083,-211.0,0.0002822,2]
[362178439,1748062252093,-348.42967679,0.00028284,2]
[362178440,1748062252102,-207.32,0.00028381,2]
[362178441,1748062252112,-4328.75784912,0.00028386,2]
[362178442,1748062252130,-200.0,0.00028408,2]
[362178443,1748062252141,-2810.34721039,0.00028428,2]
[362178444,1748062252195,-167.32848291,0.00028428,2]
[362178445,1748062252207,-6271.24690171,0.00028428,2]
[362178446,1748062252215,-572.49,0.00028518,7]
[362178447,1748062252225,-297.28826596,0.00028624,19]
[362178448,1748062252234,-381.3,0.00028767,2]
[362178449,1748062252243,-353.5,0.00028767,2]
[362178450,1748062252253,-171.74,0.00028767,2]
[362178451,1748062252264,-200.0,0.0002888,120]
[362178452,1748062252273,-172.03905885,0.00028896,15]
[362178453,1748062252284,-211.0,0.0002897,2]
[362178454,1748062252294,-1273.2,0.00029,2]
[362178455,1748062252303,-1273.2,0.00029,2]
[362178456,1748062252312,-156.88294,0.00029,2]
[362178457,1748062252322,-539.31619453,0.00029,2]
[362178458,1748062252334,-380.32,0.00029,7]
[362178459,1748062252343,-154.55,0.00029,2]
[362178460,1748062252353,-925.48593329,0.000291,2]
[362178461,1748062353803,-173.85680973,0.00019973,2]
[362178462,1748062422714,250.0,0.00015,2]
[362178463,1748062423785,300.0,0.00017,2]
[362178464,1748062476086,1161.73,0.00024979,120]
[362178466,1748062996768,204.74,0.00016712,2]
[362178467,1748063136666,187.36923496,0.00016715,2]
[362178468,1748063144107,-350.0,0.00019,2]
[362178469,1748063144131,-250.0,0.00019061,2]
[362178470,1748063144153,-200.0,0.00019061,2]
[362178471,1748063144175,-200.0,0.00019122,2]
[362178472,1748063144457,-250.0,0.00019417,2]
[362178473,1748063144480,-200.0,0.00019417,2]
[362178474,1748063144503,-173.85163364,0.00019973,2]
[362178475,1748063147912,157.27,0.00013699,2]
[362178478,1748063198089,-152.9406884,0.00019973,2]
[362178479,1748063198115,-72.45157325,0.00020022,2]